Cogmind - Beta 16 @@@ ROGUE MODE // 2025.11.14 @ 10:34:50 Player: shapeshifter Result: Destroyed by 04-7TF(R) with Subdweller Beam Cannon Performance ------------- Evolutions (0) 0 Regions Visited (2) 400 Robots Destroyed (6) 30 Value Destroyed (208) 208 Prototype IDs (0) 0 Alien Tech Used (0) 0 Bonus (0) 0 TOTAL SCORE: 638 Bonus ------- None Cogmind --------- Core Integrity 0/250 Matter 238/300 Energy 230/250 System Corruption 0% Temperature Cool (9) Movement Core (200) Ox3 Location -10/Subcaves Parts ------- > --- POWER (1) -------- Ion Engine > --- PROPULSION (2) --- (None) > --- UTILITY (2) ------ Subdweller Optics Seismic Detector > --- WEAPON (2) ------- Medium Laser Light Assault Rifle > --- INVENTORY (5) ---- Disposable Heat Sink Small Storage Unit Subdweller Optics Subdweller Laser Peak State ------------ > --- POWER ------------ Ion Engine > --- PROPULSION ------- (None) > --- UTILITY ---------- Subdweller Optics Seismic Detector > --- WEAPON ----------- Subdweller Laser Light Assault Rifle > --- INVENTORY -------- Disposable Heat Sink Small Storage Unit Subdweller Optics Medium Laser [Rating: 7] Favorites ----------- Power Light Ion Engine Engine Light Ion Engine Propulsion None Utility Seismic Detector Device Seismic Detector Weapon Light Assault Rifle Energy Gun Small Laser Ballistic Gun Light Assault Rifle Build | -11 -10 -10 ------- Run | Yrd Mat Sub Slots Evolved . | . . . Power . | . . . Propulsion . | . . . Utility . | . . . Weapon . | . . . Parts Attached 9 | 4 . 5 Power 2 | . . 2 Engine 2 | . . 2 Core . | . . . Reactor . | . . . Propulsion . | . . . Treads . | . . . Leg . | . . . Wheel . | . . . Hover . | . . . Flight . | . . . Utility 3 | 1 . 2 Device 3 | 1 . 2 Storage . | . . . Processor . | . . . Hackware . | . . . Protection . | . . . Artifact . | . . . Weapon 4 | 3 . 1 Energy Gun 3 | 2 . 1 Energy Cannon . | . . . Ballistic Gun 1 | 1 . . Ballistic Cannon . | . . . Launcher . | . . . Special Weapon . | . . . Impact Weapon . | . . . Slashing Weapon . | . . . Piercing Weapon . | . . . Special Melee Weapon . | . . . Unidentified Prototypes . | . . . Parts Lost 2 | . . 2 Power 1 | . . 1 Propulsion . | . . . Utility . | . . . Weapon 1 | . . 1 Highest Loss Streak 2 | . . 2 To Critical Strikes . | . . . Average Backups 4 | 3 4 4 Power 1 | 1 2 1 Propulsion . | . . . Utility 1 | . 1 1 Weapon . | . 1 . Tool/Special . | . . . Unused Backups 3 | 1 . 2 Power . | . . . Propulsion 1 | 1 . . Utility 2 | . . 2 Weapon . | . . . Tool/Special . | . . . Average Slot Usage (%) 52 | . 42 55 Engine 5 | . . 6 Device 19 | . 14 21 Energy Gun 13 | . 14 13 Ballistic Gun 14 | . 14 14 Peak Build Rating 7 | 3 3 7 Average Rating 3 | 1 3 4 On Entrance 2 | . 3 3 Avg Prop Armor Cover (%) . | . . . Naked Turns . | . . . Heaviest Build 13 | 3 3 13 Greatest Support 3 | 3 3 3 Greatest Overweight (x) 4 | . . 4 Average Overweight (x) . | . . . Largest Inventory Capacity 5 | 5 5 5 Average Capacity 5 | 5 5 5 Most Carried 5 | 5 4 5 Average Carried 4 | 3 4 4 Final Capacity 5 | 5 5 5 Final Carried 4 | 4 4 4 Class Distribution -------------------- 100% | Mutant Dominant Class ---------------- Mutant | -10/Materials Mutant | -10/Subcaves Resources | -11 -10 -10 ----------- Run | Yrd Mat Sub Matter Collected 277 | 244 . 33 Remotely . | . . . Salvage Created 249 | 25 . 224 Parts 17 | 3 . 14 Haulers Intercepted . | . . . Recyclers Shooed . | . . . Parts Field Recycled . | . . . Retrieved Matter . | . . . Parts Self-Destructed 2 | . . 2 Prevented . | . . . Parts Restored . | . . . Kills | -11 -10 -10 ------- Run | Yrd Mat Sub Combat Hostiles Destroyed 5 | . . 5 Guns 5 | . . 5 Classes Destroyed 3 | 1 . 2 Tunneler 1 | 1 . . Grunt 2 | . . 2 Subdweller 3 | . . 3 Best Kill Streak 2 | 1 . 2 Combat Bots Only 2 | . . 2 Max Kills in Single Turn 1 | 1 . 1 Gunslinging . | . . . Exploded . | . . . Melee . | . . . Uniques/NPCs Destroyed . | . . . Combat | -11 -10 -10 -------- Run | Yrd Mat Sub Hostile Shots Fired 32 | . . 32 Missed 12 | . . 12 Hits 20 | . . 20 Projectile 20 | . . 20 Damage Taken 414 | . . 414 Core 255 | . . 255 Absorbed by Shields . | . . . Core Remaining (%) 100 | 100 . . Volleys Fired 33 | 4 . 29 Largest 2 | 2 . 2 Hottest 80 | 60 . 80 Shots Fired 65 | 8 . 57 Gun 65 | 8 . 57 Cannon . | . . . Launcher . | . . . Special . | . . . Kinetic 33 | 4 . 29 Thermal 32 | 4 . 28 Explosive . | . . . Electromagnetic . | . . . Robot Hit Streak 8 | 3 . 8 Robot Miss Streak 3 | 3 . 2 Penetration Max . | . . . Secondary Targets . | . . . Shots Hit Robots 37 | 4 . 33 Core Hits 16 | 2 . 14 Critical Kills 1 | . . 1 Critical Parts Destroyed . | . . . Critical Strikes 2 | . . 2 Burn 1 | . . 1 Destroy 1 | . . 1 Melee Attacks . | . . . Impact . | . . . Slashing . | . . . Piercing . | . . . Sneak Attacks . | . . . Combat Hostiles . | . . . Follow-up Attacks . | . . . Damage Inflicted 321 | 52 . 269 Guns 321 | 52 . 269 Cannons . | . . . Explosions . | . . . Melee . | . . . Ramming . | . . . Kinetic 122 | 8 . 114 Thermal 199 | 44 . 155 Explosive . | . . . Electromagnetic . | . . . Impact . | . . . Slashing . | . . . Piercing . | . . . Highest Corruption . | . . . Average Corruption . | . . . Corruption Purged . | . . . Corruption Blocked . | . . . Overload Shots . | . . . Overflow Damage . | . . . Projectiles . | . . . Explosions . | . . . Melee . | . . . Knockbacks . | . . . Impact . | . . . Kinetic . | . . . Secondary . | . . . Self-Inflicted Damage . | . . . Shots . | . . . Rammed . | . . . Targets Rammed . | . . . Kicked . | . . . Crushed . | . . . Highest Temperature 20 | 20 . 17 Average Temperature 6 | 10 . 5 Received Heat Transfer 117 | . . 117 Siege Activations . | . . . Martial Activations . | . . . Shielding Activations . | . . . Robots Disrupted . | . . . Combat Hostiles . | . . . Robots Corrupted . | . . . Combat Hostiles . | . . . Parts Fried . | . . . Impact Corruptions . | . . . Robots Melted . | . . . Combat Hostiles . | . . . Parts Melted . | . . . Heat Transferred 536 | 100 . 436 Parts Sabotaged . | . . . Parts Stolen . | . . . Parts Stripped . | . . . Power Chain Reactions . | . . . Alert | -11 -10 -10 ------- Run | Yrd Mat Sub Maximum Alert Level . | . . . Low Security (%) 100 | 100 100 . Level 1 . | . . . Level 2 . | . . . Level 3 . | . . . Level 4 . | . . . Level 5 . | . . . High Security . | . . . Max Security . | . . . Peak Influence 5 | 5 . . Initial . | . . . Average . | . . . Influence Increases 55 | 5 . 50 Destroy 0b10 Robot/C 40 | . . 40 Destroy 0b10 Robot/NC 5 | 5 . . Destroy Leader 10 | . . 10 Influence Decreases 55 | 5 . 50 Time Decay 55 | 5 . 50 Squads Dispatched . | . . . Investigation . | . . . Extermination . | . . . Reinforcement . | . . . Assault . | . . . Garrison . | . . . Intercept . | . . . Searches Triggered . | . . . Construction Impeded . | . . . Haulers Reinforced . | . . . Active Scanning Responses . | . . . Cargo Convoy Interrupts . | . . . Stealth | -11 -10 -10 --------- Run | Yrd Mat Sub Distress Signals . | . . . Communications Jammed . | . . . Distress Signals . | . . . Times Spotted 6 | . . 6 Peak Tracking Total 2 | . . 2 Tactical Retreats . | . . . Traps | -11 -10 -10 ------- Run | Yrd Mat Sub Traps Triggered . | . . . Indirectly . | . . . Trap Hack Attempts . | . . . Triggered . | . . . Disarmed . | . . . Reprogrammed . | . . . Reused . | . . . Traps Extracted . | . . . Installed . | . . . Triggered . | . . . Machines | -11 -10 -10 ---------- Run | Yrd Mat Sub Machines Disabled . | . . . Max in Single Turn . | . . . Machines Repaired . | . . . Machines Dismantled . | . . . Machines Sabotaged . | . . . Overloaded Fab Kills . | . . . Hacking | -11 -10 -10 --------- Run | Yrd Mat Sub Machines Accessed 1 | . 1 . Terminals 1 | . 1 . Fabricators . | . . . Repair Stations . | . . . Recycling Units . | . . . Scanalyzers . | . . . Garrison Access . | . . . Total Hacks 2 | . 2 . Successful 1 | . 1 . Failed 1 | . 1 . Catastrophic . | . . . Database Lockouts . | . . . Manual . | . . . Terminals 2 | . 2 . Fabricators . | . . . Repair Stations . | . . . Recycling Units . | . . . Scanalyzers . | . . . Garrison Access . | . . . Terminal Hacks 1 | . 1 . Zone Layout 1 | . 1 . Fabricator Hacks . | . . . Repair Station Hacks . | . . . Recycling Unit Hacks . | . . . Scanalyzer . | . . . Garrison Access Hacks . | . . . Unauthorized Hacks . | . . . Terminals . | . . . Fabricators . | . . . Repair Stations . | . . . Recycling Units . | . . . Scanalyzers . | . . . Garrison Access . | . . . Data Cores Recovered . | . . . Used . | . . . Hacking Detections 1 | . 1 . Full Trace Events . | . . . Feedback Events . | . . . Feedback Blocked . | . . . Robot Schematics Acquired . | . . . Robots Built . | . . . Authchips . | . . . Time . | . . . Total Robot Build Rating . | . . . Part Schematics Acquired . | . . . Parts Built . | . . . Authchips . | . . . Time . | . . . Total Part Build Rating . | . . . Part Studies Acquired . | . . . Parts Repaired . | . . . Time . | . . . Parts Recycled . | . . . Recycled Matter . | . . . Retrieved Matter . | . . . Retrieved Components . | . . . Parts Scanalyzed . | . . . Part Schematics Acquired . | . . . Parts Damaged . | . . . Bothacking | -11 -10 -10 ------------ Run | Yrd Mat Sub Used RIF Installer . | . . . Robots Hacked . | . . . Non-combat . | . . . Combat . | . . . Robot Hacks Applied . | . . . Relay Couplers Released . | . . . Fabnet Peak Effective % . | . . . Robots Rewired . | . . . Allies Hacked . | . . . Hacks Repelled . | . . . Allies | -11 -10 -10 -------- Run | Yrd Mat Sub Total Allies . | . . . Largest Group . | . . . Highest-Rated Group . | . . . Highest-Rated Ally . | . . . Total Orders . | . . . Ally Attacks . | . . . Total Damage . | . . . Kills . | . . . Allies Corrupted . | . . . Allies Melted . | . . . Intel | -11 -10 -10 ------- Run | Yrd Mat Sub Active Infowar (turns) 651 | 12 153 486 Optics 241 | . . 241 Seismic 651 | 12 153 486 Robot Analysis Total . | . . . Derelict Logs Recovered . | . . . Drone Launches . | . . . Drone Recoveries . | . . . Exploration | -11 -10 -10 ------------- Run | Yrd Mat Sub Turns Passed 710 | 71 153 486 Spaces Moved 503 | 94 95 314 Core 503 | 94 95 314 Treads . | . . . Legs . | . . . Wheels . | . . . Hover . | . . . Flight . | . . . Fastest Speed 50 | 50 50 50 Average Speed 76 | 50 50 92 Slowest Speed 250 | 50 50 250 Overloaded Moves . | . . . Propulsion Burnouts . | . . . Robots Hopped . | . . . Potential Cave-ins . | . . . Cave-ins Triggered . | . . . Exploration Rate (%) 15 | 4 22 21 Regions Visited 2 Branch Regions 1 Pre-discovered Areas . | . . . Known Exits Taken . | . . . Unknown Exits Taken 2 | 1 1 . Scrap Searched . | . . . Spaces Dug . | . . . Terrain Destroyed . | . . . Melee . | . . . Projectile . | . . . AOE . | . . . Terrain Rammed . | . . . Walls Destroyed . | . . . Machines Disabled . | . . . Actions | -11 -10 -10 --------- Run | Yrd Mat Sub Total 765 | 109 199 457 Wait 209 | . 105 104 Move 501 | 93 94 314 Hop . | . . . Pick Up 10 | 7 . 3 Fast Attach 2 | 1 . 1 Attach 5 | 2 . 3 Detach . | . . . Swap 4 | 1 . 3 Drop 1 | 1 . . Fire 33 | 4 . 29 Melee . | . . . Ram . | . . . Kick . | . . . Crush . | . . . Escape Stasis . | . . . Rewire . | . . . Trap . | . . . Miscellaneous . | . . . Route ------- -11/Scrapyard -10/Materials (discovered 2 exits: [*Min] / [*Sub]) -10/Subcaves (discovered 1 exit: [*Mat]) History --------- Turn | Location | Event 12 | -11/Scrapyard | Discovered new exit (range 15) 72 | -11/Scrapyard | Entered Materials 101 | -10/Materials | Discovered new exit (range 15) 212 | -10/Materials | Discovered new exit (range 9) 225 | -10/Materials | Entered Subcaves 226 | -10/Subcaves | Approached by a straggling Scientist 278 | -10/Subcaves | Discovered new exit (range 5) 309 | -10/Subcaves | Build established: Mutant 448 | -10/Subcaves | Core integrity fell below 50% 697 | -10/Subcaves | Core integrity fell below 20% 711 | -10/Subcaves | Destroyed by 04-7TF(R) with Subdweller Beam Cannon Last Messages --------------- AZ-E7L(c): "I think it's somewhere west of here" 00436_ 3W-4K3(R) destroyed. 00444_ OA-L76(R) affixes Scrap Shield Fragment to Scrap Shield. 00446_ Subatomizers dissect the Sub. Optics. 00448_ OA-L76(R) destroyed. 00451_ Acquired 8 matter. 00463_ Acquired Sub. Optics. 00468_ Acquired 10 matter. 00471_ Subatomizers dissect the Sub. Monowheel. 00471_ Acquired Disposable Heat Sink. AZ-E7L(c): "I think it's somewhere west of here" AZ-E7L(c): "I think it's somewhere northwest of here" 00605_ Lgt. Ion Engine destroyed. 00607_ Sub. Optics shoots sparks and powers down. 00607_ Sml. Laser destroyed. 00608_ PA-3ZV(R) destroyed. 00625_ Acquired Sub. Laser. AZ-E7L(c): "I think it's somewhere northwest of here" AZ-E7L(c): "I think it's somewhere north of here" 00709_ 04-7TF(R) suffers critical hit (Burn). Map ----- +----------------------------------------------------+ | ????????????????????????????????????????????## #? | | ?????????????????????????????????????????????# #? | | ?????????????????????????????????????????????# # | | ?????????????????????????????????????????????# # | | ?????????????????????????????????????????????# # | | ?????????????????????????????????????????????## # | | ???????????????????????????????????????????????### | | ?????????????????????????????????????????????????? | | ?????????????????????????????????????????????????? | | ?????????????????????????????????????????????????? | | ??????????????????????????????????? ?????????? | | ?????????????????????????????????? ??????????? | | ?????????????????????????????????? #??????????? | | ????????????????????????????????? #??????????? | | ????????????????????????????????? #??????????? | | ???????????????????????????????? ???????????? | | ??????????????????????????????? ????????????? | | ??????????????????????????????? ?????????????? | | ?????????????????????????????? #??????????????? | | ????????????????????????????? #??????????????? | | ????????????????????????????? ????????????????? | | ???????????????????????????? ?????????????????? | | ?????????????????????????### #??????????????????? | | ????????????????????????## #???????????????????? | | ????????????????????????# #????????????????#### | | ??????????????????????###@ ##?????????##?????## # | | ?????????????????????##"# #?###???? #????## | | ??????????????????#?##" ##?# ##?? ????## | | ????????????????### # R ### "### ????# | | ???????????? " "c ##"" ?????# ## | | ??????????? " """ ## "" #??????## #? | | ???????????? ## """ " ##""" ####???## ## | | ?????????? ??## " """ """ ## ##### | | ?????????## ?????# " """ """"" &&& | | ??????????##???????# "" """ " &%& | | ???????????????????#" ###" " ## # ## | | ???????????????????## ??## " ####### ####? | | ????????????????????##???##"" ##?????### #???? | | ??????????????????????????## #????????## #???? | | ???????????????????????????# ?????????# ?? | | ??????????????????????????? ????????? | | ??????????????????????????" ## ???????# | | ?????????????????????????" #? ???????## | | ???????????????????????? ## #? ???????## | | ???????????????????????###?# ?? ????????## | | ???????????????????????????# #?? ????????# | | ??????????????????????????? #?? ????????# ### | | ???????????????????????????###???#????????###??# # | | ????????????????????????????????????????????????## | | ?????????????????????????????????????????????????? | +----------------------------------------------------+ Best States ------------- Heat Dissipation 25 Energy Generation 10 Energy Capacity 250 Matter Stores 300 Matter Capacity 300 Sight Range 21 Terrain Scan Density 10 Evasion (%) 50 Item Schematics ----------------- None Robot Schematics ------------------ None Fabricated ------------ Nothing Repaired ---------- Nothing Studied --------- None Alien Tech Used ----------------- None Achievements -------------- None Challenges ------------ None Game ------ Seed TiamatMicrodissipatorGun Manual? 0 Play Time 00:06:48 Cumulative 498.7 hours Start 2025.11.14 @ 10:30:03 End 2025.11.14 @ 10:34:50 Sessions 1 Manual Loads 0 Difficulty Rogue Special Mode None Game No. 674 Rogue 674 Adventurer 0 Explorer 0 Win Type - Total 16 Types 8/0/2/2/1/0/2/1/0/0 Lore% 91 Gallery% 85 Achievement% 66 Wizard Run 0 Options --------- Layout 0 ASCII 0 Keyboard 0 Movement Mouse Keybinds 0 Fullscreen 1 Font 24/Terminus Map View 76x50 Zoom Use 0% Tactical HUD 1 Map Filters NONE Filters NONE Steam 1 RUN: 837e62b8-1edc-4218-bed8-8ab9ef6dd50a